fUSD/lending_fUSD_20241028
["ID","MTS","AMOUNT","RATE_DAILY","PERIOD"]
[340920632,1730097032585,-637.33564704,0.00015,2]
[340920643,1730097038264,-394.95774352,0.00014999,2]
[340920644,1730097038339,-5285.8,0.00014999,2]
[340920661,1730097040344,-1220.30376164,0.00014999,2]
[340920662,1730097040354,-35985.67349217,0.00015,2]
[340920663,1730097040363,-156.62,0.00015342,2]
[340920664,1730097040373,-174.99,0.00015342,2]
[340920665,1730097040382,-808.14063014,0.000159,2]
[340920666,1730097040391,-509.37228142,0.00016342,2]
[340920667,1730097040401,-4549.29590524,0.00018,2]
[340920668,1730097040410,-1071.55714965,0.0002,2]
[340920669,1730097040420,-749.22737702,0.000264,2]
[340920670,1730097040429,-606.13,0.00026762,2]
[340920671,1730097040439,-11141.43334588,0.00027,2]
[340920672,1730097040448,-409.36005769,0.00027,2]
[340920673,1730097040457,-3000.0,0.00027,2]
[340920674,1730097040467,-983.21730778,0.00027,2]
[340920675,1730097040476,-190.98022722,0.000275,2]
[340920676,1730097040486,-268.94,0.000275,2]
[340920677,1730097040495,-13387.61620871,0.000275,2]
[340920678,1730097040505,-151.0,0.000275,7]
[340920679,1730097040522,-151.0,0.000275,7]
[340920680,1730097040531,-631.708643,0.000275,7]
[340920681,1730097040541,-631.708643,0.000275,7]
[340920682,1730097040550,-3371.48078655,0.00028,2]
[340920683,1730097040559,-606.13,0.00029026,2]
[340920684,1730097040568,-9654.93,0.00029477,2]
[340920685,1730097040577,-250.0,0.00029492,2]
[340920686,1730097040587,-489.34,0.00029679,2]
[340920687,1730097040596,-150.0,0.00029692,7]
[340920688,1730097040606,-250.0,0.00029751,2]
[340920689,1730097040615,-151.0,0.00029899,7]
[340920690,1730097040625,-174.477503,0.00029899,7]
[340920691,1730097040634,-631.708643,0.00029899,7]
[340920692,1730097040645,-631.708643,0.00029899,7]
[340920693,1730097040654,-237.042346,0.00029899,7]
[340920694,1730097040663,-237.042346,0.00029899,7]
[340920695,1730097040673,-50346.93079221,0.000299,2]
[340920696,1730097040692,-278.51,0.00029392,2]
[340920697,1730097040702,-1420.34355896,0.000299,2]
[340920698,1730097040713,-2236.33999999,0.000299,2]
[340920699,1730097040724,-2718.61871281,0.000299,2]
[340920700,1730097040733,-928.55,0.00029986,2]
[340920701,1730097040743,-225.63215568,0.0002999,2]
[340920702,1730097040752,-166.57,0.00029991,2]
[340920703,1730097040765,-353.3473217,0.0003,2]
[340920843,1730097043283,-994.64,0.0003,2]
[340920852,1730097046503,-156.11,0.00015342,2]
[340920853,1730097046513,-250.752136,0.0003,2]
[340920856,1730097756054,-250.0,0.00015,2]
[340920858,1730097969284,300.0,0.000145,3]
[340920865,1730098230180,250.0,0.000145,3]
[340920869,1730098232345,-164.83,0.00015342,2]
[340920870,1730098232355,-163.73,0.00015342,2]
[340920871,1730098232365,-150.0,0.00015635,2]
[340920872,1730098232374,-179.0,0.000237,2]
[340920873,1730098232383,-545.51,0.00027838,2]
[340920874,1730098232392,-2098.75961264,0.00029741,2]
[340920875,1730098232404,-387.40038736,0.00029741,2]
[340920876,1730098232413,-250.0,0.00029767,2]
[340920877,1730098232422,-20.08300684,0.0002979,2]
[340920878,1730098232452,-479.16,0.0002979,2]
[340920879,1730098232464,-2111.13605247,0.0002979,2]
[340920880,1730098232475,-21279.62094069,0.0002979,2]
[340920881,1730098232484,-300.0,0.000298,30]
[340920882,1730098232493,-300.0,0.000298,7]
[340920883,1730098232502,-1000.0,0.00029842,2]
[340920884,1730098232512,-200.0,0.00029862,2]
[340920885,1730098232521,-150.0,0.00029872,7]
[340920886,1730098232530,-9067.81621399,0.0003,2]
[340920887,1730098232539,-15335.67572383,0.0003,2]
[340920888,1730098232548,-1725.46905375,0.0003,2]
[340920889,1730098232558,-1012.52463511,0.0003,2]
[340920890,1730098232567,-300.0,0.0003,30]
[340920891,1730098232576,-200.0,0.0003,2]
[340920892,1730098232590,-1013.80638574,0.00030051,2]
[340920893,1730098232599,-545.51,0.00030101,2]
[340920894,1730098232607,-257.68,0.00030161,2]
[340920895,1730098232616,-200.0,0.000303,2]
[340920896,1730098232626,-169.18,0.00030331,2]
[340920897,1730098232635,-200.0,0.00030603,2]
[340920898,1730098232644,-1203.317,0.0003072,2]
[340920899,1730098232653,-167.01,0.00030837,2]
[340920900,1730098232664,-200.0,0.000309,11]
[340920901,1730098232673,-153.0,0.00030962,2]
[340920902,1730098232683,-153.0,0.00030971,2]
[340920903,1730098232692,-153.0,0.0003098,2]
[340920904,1730098232701,-153.0,0.00030989,2]
[340920905,1730098232709,-153.0,0.00030998,2]
[340920906,1730098232718,-1000.0,0.00031,120]
[340920907,1730098232727,-153.0,0.00031007,2]
[340920908,1730098232736,-153.0,0.00031016,2]
[340920909,1730098232746,-153.0,0.00031025,2]
[340920910,1730098232754,-153.0,0.00031034,2]
[340920911,1730098232763,-153.0,0.00031044,2]
[340920912,1730098232772,-153.0,0.00031053,2]
[340920913,1730098232781,-153.0,0.00031062,2]
[340920914,1730098232790,-153.0,0.00031071,2]
[340920915,1730098232799,-153.0,0.0003108,2]
[340920916,1730098232808,-153.0,0.00031089,2]
[340920917,1730098232817,-153.0,0.00031098,2]
[340920918,1730098232826,-153.0,0.00031107,2]
[340920919,1730098232835,-153.0,0.00031116,2]
[340920920,1730098232844,-500.0,0.000312,2]
[340920921,1730098232853,-66173.10699423,0.000312,2]
[340920922,1730098232865,-1642.848539,0.000312,2]
[340920923,1730098232875,-20737.94430131,0.000312,2]
[340920924,1730098232886,-11446.10016546,0.000312,2]
[340920925,1730098232895,-7312.5367,0.0003129,2]
[340920926,1730098232904,-499.2761,0.0003129,2]
[340920927,1730098232913,-47712.86030654,0.000313,2]
[340920928,1730098232923,-11367.26451937,0.000313,2]
[340920929,1730098232939,-5878.67181557,0.000313,2]
[340920930,1730098232949,-579.46346634,0.000313,2]
[340920931,1730098232960,-737.5985368,0.000313,2]
[340920932,1730098232970,-554.04576987,0.000313,2]
[340920933,1730098232981,-9179.75320389,0.000313,2]
[340920934,1730098232992,-897.09377397,0.000313,2]
[340920935,1730098238428,-2196.0,0.000313,2]
[340920936,1730098238522,-2000.62944,0.000313,2]
[340920949,1730098240444,-24931.52484769,0.000313,2]
[340920950,1730098240555,-2270.0,0.000313,2]
[340920951,1730098240567,-3056.31136491,0.000313,2]
[340920952,1730098240580,-1346.25405881,0.000313,2]
[340920953,1730098240596,-528.55,0.000313,2]
[340920954,1730098240607,-5562.5,0.000313,2]
[340920955,1730098240679,-934.64556237,0.000313,2]
[340920956,1730098240692,-13946.69273387,0.000313,2]
[340920957,1730098240702,-2500.0,0.000313,2]
[340920958,1730098240713,-478.54079734,0.000313,2]
[340920959,1730098240723,-983.60779251,0.00031359,15]
[340920960,1730098240733,-500.0,0.00031373,2]
[340920961,1730098240742,-13895.3731893,0.0003139,7]
[340920962,1730098240751,-35536.66771133,0.000314,2]
[340920963,1730098240763,-81557.82145002,0.000314,2]
[340920964,1730098240807,-400.07483383,0.000314,2]
[340920965,1730098240818,-428.79321821,0.000314,2]
[340920966,1730098240829,-3281.23194796,0.000314,2]
[340920967,1730098244257,-2035.92778442,0.000314,2]
[340920968,1730098244290,-7615.64940918,0.000314,2]
[340920969,1730098244322,-251.71125,0.000314,2]
[340920970,1730098244333,-885.01844669,0.000314,2]
[340920971,1730098244442,-1788.09428723,0.000314,2]
[340920972,1730098244477,-5161.16,0.000314,2]
[340920973,1730098244488,-3004.950001,0.000314,2]
[340920974,1730098244500,-3062.1744444,0.000314,2]
[340920975,1730098244511,-6254.94605089,0.000314,2]
[340920982,1730098246476,-7125.0,0.000314,2]
[340920983,1730098246503,-7513.32714012,0.000314,2]
[340920984,1730098246600,-1703.69182432,0.000314,2]
[340921069,1730099151925,250.0,0.00015,2]
[340921098,1730099431833,-300.0,0.00017,2]
[340921100,1730099431843,-150.0,0.00017324,2]
[340921102,1730099431853,-300.0,0.00019725,2]
[340921104,1730099431862,-300.0,0.00021484,2]
[340921106,1730099431871,-241.22,0.00023721,2]
[340921108,1730099431881,-584.66,0.00027631,2]
[340921110,1730099431890,-304.24284278,0.00028021,2]
[340921112,1730099431902,-381.02176822,0.00028021,2]
[340921114,1730099431911,-250.0,0.00029484,2]
[340921116,1730099431920,-4361.57823178,0.00029534,2]
[340921118,1730099431932,-19528.42176822,0.00029534,2]
[340921120,1730099431942,-198.69,0.00029593,2]
[340921122,1730099431951,-395.26,0.00029766,2]
[340921124,1730099431961,-380.41,0.00029791,2]
[340921126,1730099431970,-800.0,0.00029835,2]
[340921128,1730099431979,-584.66,0.00029895,2]
[340921130,1730099431989,-150.0,0.00029903,7]
[340921131,1730099431999,-296.33,0.00029977,2]
[340921133,1730099432008,-250.0,0.0002999,2]
[340921135,1730099432018,-500.0,0.0003,7]
[340921137,1730099432027,-500.0,0.0003,7]
[340921139,1730099432036,-2000.0,0.00030137,7]
[340921141,1730099432045,-2000.0,0.00030137,7]
[340921143,1730099432055,-2000.0,0.00030137,7]
[340921145,1730099432064,-200.0,0.00030431,2]
[340921147,1730099432074,-169.39,0.00030465,2]
[340921149,1730099432084,-251.81,0.00031,14]
[340921151,1730099432093,-594.36,0.00031096,2]
[340921153,1730099432103,-865.2825,0.000311,2]
[340921155,1730099432113,-1160.8563,0.000311,2]
[340921156,1730099432123,-12978.53956928,0.000312,2]
[340921201,1730099438099,-9003.95773072,0.000312,2]
[340921202,1730099438109,-2096.2278,0.000312,2]
[340921203,1730099438118,-4608.13258019,0.000313,2]
[340921210,1730099440033,-357.27384734,0.00017224,2]
[340921211,1730099440043,-17.18265267,0.000313,2]
[340921224,1730099445719,-3382.78476714,0.000313,2]
[340921225,1730099445729,-599.0342,0.000313,2]
[340921226,1730099445739,-111.37721431,0.000313,2]
[340921227,1730099445750,-572.81074713,0.000313,2]
[340921228,1730099445762,-808.66663856,0.000313,2]
[340921229,1730099445773,-910.17899909,0.000313,2]
[340921230,1730099445831,-2866.49439214,0.000313,2]
[340921231,1730099445843,-6730.25962879,0.000313,2]
[340921232,1730099445855,-4.85097998,0.000313,2]
[340921233,1730099445865,-885.24701325,0.000313,15]
[340921234,1730099445874,-445.7348,0.000313,2]
[340921235,1730099445883,-1120.3532,0.000313,2]
[340921236,1730099445892,-1861.7713,0.000313,2]
[340921237,1730099445901,-3050.67269857,0.000313,2]
[340921238,1730099445913,-1552.725,0.000313,2]
[340921384,1730100325798,869.78836245,0.000108,2]
[340921386,1730100356300,268.70560034,0.00014,2]
[340921387,1730100481473,48361.50603721,0.00015,2]
[340921388,1730100481498,50000.0,0.00015,2]
[340921389,1730100481524,50000.0,0.00015,2]
[340921390,1730100481551,15383.17583651,0.00015,2]
[340921391,1730100490201,201.39443837,0.00015,2]
[340921392,1730100520773,150.0,0.00015,3]
[340921393,1730100521668,5389.0,0.00015,2]
[340921394,1730100522750,494.94552587,0.00015,2]
[340921425,1730100631756,-424.9107552,0.00015242,2]
[340921426,1730100631766,-424.9107552,0.00015338,2]
[340921427,1730100631776,-153.3,0.00015342,2]
[340921428,1730100631785,-159.79,0.00015342,2]
[340921429,1730100631795,-150.0,0.00015533,2]
[340921430,1730100631806,-300.0,0.00015533,2]
[340921431,1730100631819,-300.0,0.00015533,2]
[340921432,1730100631829,-14447.9622298,0.00015534,2]
[340921433,1730100631838,-2054.80614685,0.000159,2]
[340921434,1730100631848,-154.76,0.00016712,2]
[340921435,1730100631857,-301.0,0.00016991,2]
[340921436,1730100631867,-249.0,0.00016991,2]
[340921437,1730100631876,-450.0,0.00019999,2]
[340921438,1730100631885,-45797.86372025,0.0002,2]
[340921439,1730100631895,-500.0,0.0002,2]
[340921440,1730100631904,-162.67,0.0002,2]
[340921441,1730100631913,-500.0,0.0002137,2]
[340921442,1730100631923,-269.0,0.000229,2]
[340921443,1730100631933,-162.67,0.0002319,2]
[340921444,1730100631943,-3925.50635877,0.000232,2]
[340921445,1730100631952,-5201.57833073,0.00023922,2]
[340921446,1730100631961,-904.24,0.0002706,2]
[340921447,1730100631971,-200.0,0.00027387,2]
[340921448,1730100631980,-1743.07,0.00027387,2]
[340921449,1730100631990,-150.0,0.0002748,2]
[340921450,1730100631999,-162.67,0.00027751,2]
[340921451,1730100632008,-162.67,0.00027751,2]
[340921452,1730100632017,-769.89,0.00027751,10]
[340921453,1730100632027,-29679.71,0.00027761,2]
[340921454,1730100632036,-500.0,0.00027786,2]
[340921455,1730100632045,-1000.0,0.00027812,2]
[340921456,1730100632054,-167.01,0.00027879,2]
[340921457,1730100632067,-162.67,0.00028037,2]
[340921458,1730100632076,-23900.0,0.00028047,2]
[340921459,1730100632085,-162.67,0.00028112,2]
[340921460,1730100632094,-250.0,0.00028122,2]
[340921461,1730100632103,-952.52,0.00028239,2]
[340921462,1730100632112,-785.46,0.00028245,2]
[340921463,1730100632121,-194.11,0.00028279,2]
[340921464,1730100632131,-181.84,0.00028466,2]
[340921465,1730100632139,-151.2,0.00028481,30]
[340921466,1730100632148,-169.39,0.00028581,2]
[340921467,1730100632158,-150.0,0.00028649,7]
[340921468,1730100632167,-250.0,0.00028797,2]
[340921469,1730100632176,-536.44,0.00029213,2]
[340921470,1730100632185,-250.0,0.00029304,2]
[340921471,1730100632194,-904.24,0.00029324,2]
[340921472,1730100632203,-171.63,0.00029371,2]
[340921473,1730100632213,-2359.52,0.00029606,2]
[340921474,1730100632223,-177.48,0.00029662,2]
[340921475,1730100632232,-255.25,0.00029973,2]
[340921476,1730100632242,-3092.53886764,0.0003,120]
[340921477,1730100632251,-214.08541939,0.00030137,60]
[340921478,1730100632261,-2522.8,0.00030144,2]
[340921479,1730100632271,-463.15,0.00030177,2]
[340921480,1730100632281,-168.91,0.0003057,2]
[340921481,1730100632290,-378.2,0.0003087,3]
[340921482,1730100632300,-162.67,0.0003087,2]
[340921483,1730100632309,-162.67,0.0003087,2]
[340921484,1730100632320,-162.67,0.0003087,2]
[340921485,1730100632329,-162.67,0.0003087,2]
[340921486,1730100632338,-179.09674588,0.00030879,2]
[340921487,1730100632348,-183.0,0.0003088,2]
[340921488,1730100632357,-149269.8579235,0.0003088,2]
[340921489,1730100632367,-200.0,0.000309,11]
[340921490,1730100632377,-171.63,0.00030987,2]
[340921491,1730100632386,-157.99679306,0.00031,2]
[340921492,1730100632395,-1197.4419,0.000311,2]
[340921493,1730100632405,-262.5797,0.000311,2]
[340921494,1730100632414,-795.8648,0.000311,2]
[340921495,1730100632423,-2500.0,0.000311,2]
[340921496,1730100632433,-167.5482,0.000311,2]
[340921497,1730100632442,-485.1445,0.000311,2]
[340921498,1730100632452,-482.2977212,0.000311,2]
[340921499,1730100632461,-390.42397744,0.00031183,2]
[340921500,1730100632469,-1188.18937677,0.0003119,15]
[340921501,1730100632478,-40034.7088847,0.0003119,7]
[340921502,1730100632488,-208.36381275,0.00031199,2]
[340921503,1730100632497,-1113.3743,0.000312,2]
[340921504,1730100632507,-433.2501,0.000312,2]
[340921505,1730100632516,-145750.5299,0.000312,2]
[340921506,1730100632525,-1000.0,0.000312,2]
[340921507,1730100632535,-3821.1648,0.000312,2]
[340921508,1730100632544,-151.0,0.000312,7]
[340921509,1730100632554,-151.0,0.000312,7]
[340921510,1730100632565,-196.442371,0.000312,7]
[340921511,1730100632574,-153.423114,0.000312,7]
[340921512,1730100632583,-151.0,0.000312,7]
[340921513,1730100632592,-264.768914,0.000312,7]
[340921514,1730100632602,-151.0,0.000312,7]
[340921515,1730100632611,-196.762461,0.000312,7]
[340921516,1730100632619,-151.0,0.000312,7]
[340921517,1730100632629,-151.0,0.000312,7]
[340921518,1730100632638,-3154.188811,0.000312,14]
[340921519,1730100632647,-16013.8835539,0.0003128,7]
[340921520,1730100632657,-1000.0,0.00031288,2]
[340921521,1730100632666,-68059.005104,0.0003129,7]
[340921522,1730100632675,-151.0,0.0003129,7]
[340921523,1730100632685,-151.0,0.0003129,7]
[340921524,1730100632694,-183.99784003,0.0003129,2]
[340921525,1730100632704,-220.52005392,0.0003129,4]
[340921526,1730100632714,-4550.45230143,0.000313,2]
[340921527,1730100632723,-224.668,0.000313,2]
[340921528,1730100632732,-5314.24757124,0.000313,2]
[340921529,1730100632745,-76170.66032876,0.000313,2]
[340921530,1730100632755,-573.8441,0.000313,2]
[340921531,1730100632764,-4107.1976,0.000313,2]
[340921532,1730100632773,-1042.586098,0.000313,2]
[340921533,1730100632783,-1088.01274324,0.000313,2]
[340921534,1730100632794,-544.784,0.000313,2]
[340921535,1730100632806,-3987.64555676,0.000313,2]
[340921536,1730100632818,-3111.54698227,0.000313,2]
[340921537,1730100632835,-526.02261462,0.000313,2]
[340921538,1730100632846,-563.73670311,0.000313,2]
[340921539,1730100632856,-640.1809,0.000313,2]
[340921540,1730100632865,-1322.78239688,0.000313,2]
[340921541,1730100632877,-6514.16112534,0.000313,2]
[340921542,1730100632889,-585.06081814,0.000313,2]
[340921543,1730100632902,-1990.44,0.000313,2]
[340921544,1730100632914,-15976.52335964,0.000313,2]
[340921545,1730100632923,-3354.0255,0.000313,2]
[340921546,1730100632933,-151.0,0.000313,7]
[340921547,1730100632942,-151.0,0.000313,7]
[340921548,1730100632952,-151.0,0.000313,7]
[340921549,1730100632961,-159.095202,0.000313,7]
[340921550,1730100632971,-155.889483,0.000313,7]
[340921551,1730100632981,-157.501479,0.000313,7]
[340921552,1730100632990,-151.0,0.000313,7]
[340921553,1730100632999,-151.0,0.000313,7]
[340921554,1730100633009,-151.0,0.000313,7]
[340921555,1730100633019,-223.0,0.000313,7]
[340921556,1730100633029,-157.943776,0.000313,7]
[340921557,1730100633038,-154.407897,0.000313,7]
[340921558,1730100633048,-151.0,0.000313,7]
[340921559,1730100633057,-199.70375,0.000313,7]
[340921560,1730100633071,-199.70375,0.000313,7]
[340921561,1730100633081,-151.0,0.000313,7]
[340921562,1730100633091,-191.394075,0.000313,7]
[340921563,1730100633100,-151.149859,0.000313,7]
[340921564,1730100633110,-153.570097,0.000313,7]
[340921565,1730100633120,-265.493351,0.000313,7]
[340921566,1730100633130,-265.493351,0.000313,7]
[340921567,1730100633140,-159.558253,0.000313,7]
[340921568,1730100633149,-151.0,0.000313,7]
[340921569,1730100633159,-166.978049,0.000313,7]
[340921570,1730100633169,-1564.942564,0.000313,7]
[340921571,1730100633179,-1564.942564,0.000313,7]
[340921572,1730100633191,-1564.942564,0.000313,7]
[340921573,1730100633201,-1564.942564,0.000313,7]
[340921574,1730100633210,-151.0,0.000313,7]
[340921575,1730100633220,-151.0,0.000313,7]
[340921576,1730100633230,-237.115736,0.000313,7]
[340921577,1730100633240,-168.207878,0.000313,7]
[340921578,1730100633250,-12010.4126654,0.0003138,7]
[340921579,1730100633259,-24020.8253308,0.0003139,7]
[340921580,1730100633269,-12706.3429874,0.0003139,7]
[340921581,1730100633279,-151.0,0.0003139,7]
[340921582,1730100633288,-554.1069,0.0003139,2]
[340921583,1730100633298,-1731.134,0.0003139,2]
[340921584,1730100633308,-283.67466476,0.0003139,2]
[340921585,1730100633324,-834.08783524,0.0003139,2]
[340921586,1730100633334,-3031.7746,0.0003139,2]
[340921587,1730100633344,-629.79526812,0.00031399,2]
[340921588,1730100633356,-631.35442786,0.00031399,2]
[340921589,1730100633366,-220.0,0.000314,2]
[340921590,1730100633375,-203.51480903,0.000314,3]
[340921591,1730100633385,-173.37526601,0.000314,2]
[340921592,1730100633394,-151.0,0.000314,7]
[340921593,1730100633404,-151.0,0.000314,7]
[340921594,1730100633413,-154.609533,0.000314,7]
[340921595,1730100633422,-151.0,0.000314,7]
[340921596,1730100633432,-183.89035202,0.000314,3]
[340921597,1730100633441,-248.130036,0.000314,7]
[340921598,1730100633451,-199.70375,0.000314,7]
[340921599,1730100633461,-199.70375,0.000314,7]
[340921600,1730100633470,-199.910933,0.000314,7]
[340921601,1730100633480,-1564.942564,0.000314,7]
[340921602,1730100633489,-1564.942564,0.000314,7]
[340921603,1730100633498,-3199.46627482,0.000314,2]
[340921604,1730100633508,-241.08756406,0.000314,2]
[340921605,1730100633517,-186.63009048,0.000314,6]
[340921606,1730100633526,-5830.25139153,0.000314,2]
[340921640,1730100637846,-424.9107552,0.00015433,2]
[340921641,1730100637856,-489.88266566,0.000314,2]
[340921642,1730100637957,-868.71092388,0.000314,2]
[340921643,1730100638070,-28106.05852149,0.000314,2]
[340921644,1730100638079,-298.58014488,0.000314,2]
[340921645,1730100638088,-220.52005392,0.000314,4]
[340921646,1730100638097,-4003.47088847,0.0003141,7]
[340921647,1730100638107,-5553.2715597,0.0003142,2]
[340921648,1730100638116,-265.493351,0.0003142,7]
[340921649,1730100638125,-265.493351,0.0003142,7]
[340921650,1730100638134,-3027.56401808,0.00031434,7]
[340921651,1730100638145,-975.90687039,0.00031434,7]
[340921652,1730100638154,-176.93501359,0.00031441,29]
[340921653,1730100638163,-151.0,0.00031454,7]
[340921654,1730100638172,-151.0,0.00031454,7]
[340921655,1730100638181,-151.0,0.00031454,7]
[340921656,1730100638194,-152.977018,0.00031454,7]
[340921657,1730100638203,-3176.58574686,0.0003146,7]
[340921658,1730100638212,-2700.45341413,0.0003147,7]
[340921659,1730100638288,-1303.01747434,0.0003147,7]
[340921661,1730100638297,-151.0,0.0003148,7]
[340921662,1730100638306,-151.0,0.0003148,7]
[340921664,1730100638318,-153.971546,0.0003148,7]
[340921666,1730100638327,-155.477663,0.0003148,7]
[340921668,1730100638336,-159.817867,0.0003148,7]
[340921669,1730100638345,-151.0,0.0003148,7]
[340921671,1730100638353,-151.0,0.0003148,7]
[340921673,1730100638363,-151.0,0.0003148,7]
[340921675,1730100638372,-36031.2379962,0.0003148,7]
[340921676,1730100638381,-28210.99732046,0.0003148,7]
[340921678,1730100638391,-315.43310057,0.0003148,7]
[340921703,1730100639765,-641.02570616,0.000314,2]
[340921704,1730100639775,-372.62429384,0.0003148,7]
[340921705,1730100639786,-9149.18235391,0.0003148,7]
[340921706,1730100639796,-1452.25846956,0.0003148,7]
[340921707,1730100639993,-414.85334902,0.0003148,7]
[340921708,1730100640004,-13054.96702883,0.0003148,7]
[340921709,1730100640015,-647.76499982,0.0003148,7]
[340921712,1730100643472,-151.0,0.0003119,7]
[340921713,1730100643481,-189.37853889,0.000314,2]
[340921714,1730100643491,-3153.27200472,0.0003148,7]
[340921722,1730100643847,-151.0,0.000312,7]
[340921723,1730100643857,-13586.24302596,0.0003148,7]
[340921724,1730100643869,-2237.89682434,0.0003148,7]
[340921725,1730100643971,-151.0,0.0003129,7]
[340921726,1730100643981,-13172.32239417,0.0003148,7]
[340921727,1730100643991,-151.0,0.0003149,7]
[340921728,1730100644000,-151.0,0.0003149,7]
[340921729,1730100644009,-277.484436,0.0003149,7]
[340921730,1730100644018,-151.0,0.0003149,7]
[340921731,1730100644028,-151.0,0.0003149,7]
[340921732,1730100644038,-151.0,0.0003149,7]
[340921733,1730100644047,-151.0,0.0003149,7]
[340921734,1730100644056,-211.15709,0.0003149,7]
[340921735,1730100644065,-199.70375,0.0003149,7]
[340921736,1730100644077,-199.70375,0.0003149,7]
[340921737,1730100644088,-199.70375,0.0003149,7]
[340921738,1730100644097,-199.70375,0.0003149,7]
[340921739,1730100644106,-265.493351,0.0003149,7]
[340921740,1730100644116,-265.493351,0.0003149,7]
[340921742,1730100644127,-265.493351,0.0003149,7]
[340921744,1730100644136,-265.493351,0.0003149,7]
[340921745,1730100644146,-38119.0289623,0.0003149,7]
[340921746,1730100644155,-1564.942564,0.0003149,7]
[340921747,1730100644164,-1564.942564,0.0003149,7]
[340921748,1730100644174,-1564.942564,0.0003149,7]
[340921749,1730100644184,-1564.942564,0.0003149,7]
[340921750,1730100644196,-151.0,0.0003149,7]
[340921751,1730100644205,-187.46136257,0.0003149,7]
[340921752,1730100644214,-1347795.81446066,0.000315,2]
[340921753,1730100644225,-492884.78552865,0.000315,2]
[340921754,1730100644236,-527480.73500885,0.000315,2]
[340921756,1730100644249,-997991.39631531,0.000315,2]
[340921785,1730100644516,-301.25385499,0.000315,2]
[340921787,1730100644527,-659.01070607,0.000315,2]
[340921898,1730100645899,-151.0,0.000313,7]
[340921900,1730100645909,-110.912,0.000313,7]
[340921902,1730100645923,-40.088,0.000313,7]
[340921904,1730100645933,-151.0,0.0003139,7]
[340921906,1730100645943,-81.43254,0.000314,7]
[340921908,1730100645955,-69.56746,0.000314,7]
[340921910,1730100645965,-151.0,0.0003148,7]
[340921912,1730100645977,-20940.65654,0.000315,2]
[340921916,1730100646007,-518.5600012,0.000315,2]
[340921920,1730100646038,-151.0,0.0003148,7]
[340921922,1730100646048,-3916.75139027,0.000315,2]
[340922319,1730100928099,382.0,0.00022,30]
[340922320,1730100955367,250.0,0.00015,2]
[340922326,1730101760328,-176.0,0.00029938,120]
[340922336,1730101831987,-162.27,0.00015342,2]
[340922337,1730101831996,-156.13,0.00015342,2]
[340922338,1730101832005,-154.77,0.00016712,2]
[340922339,1730101832014,-20.66713586,0.000169,2]
[340922340,1730101832026,-199.37440424,0.000169,2]
[340922341,1730101832035,-300.0,0.00017,2]
[340922342,1730101832045,-350.0,0.00019,2]
[340922343,1730101832054,-177.29,0.00019178,2]
[340922344,1730101832069,-400.0,0.00021,2]
[340922345,1730101832083,-683.42,0.00021,2]
[340922346,1730101832092,-450.0,0.00023,2]
[340922347,1730101832101,-170.0,0.000249,2]
[340922348,1730101832110,-500.0,0.00025,2]
[340922349,1730101832119,-2904.16476231,0.00025,2]
[340922350,1730101832130,-5130.49523769,0.00025,2]
[340922351,1730101832139,-500.0,0.00025,3]
[340922352,1730101832148,-1161.05,0.00026689,2]